[Event "22nd Hogeschool Zeeland 2018"]
[Site "Vlissingen"]
[Date "2018.08.04"]
[Round "1"]
[White "Melger, Ron"]
[Black "Grooten, Herman"]
[Result "0-1"]
[ECO "E13"]
[WhiteElo "1805"]
[BlackElo "2374"]
[Annotator "NA"]
[PlyCount "66"]
[EventDate "2018.08.04"]
[EventType "swiss"]
[EventCountry "NED"]
[SourceTitle "playchess.com"]
[Source "ChessBase"]
[SourceQuality "1"]
[TimeControl "40/5400+30:1800+30"]

{[%evp 17,66,10,14,-5,-6,-11,21,0,0,0,5,-41,-45,-60,-64,-123,-109,-202,-214,-370,-350,-345,-260,-700,-587,-1187,-1145,-1760,-1743,-1722,-1761,-1980,-1976,-29987,-1327,-1293,-1291,-1251,-1258,-1201,-1172,-1381,-1259,-1791,-1800,-29986,-29987,-29987,-29988,-29995,-1024]} 1. d4 {[%emt 0:00:00]} Nf6 {[%emt 0:00:00]} 2. Nf3 {[%emt 0:00:32]} e6 {[%emt 0:00:00]} 3. c4 {[%emt 0:01:30]} b6 {[%emt 0:00:00]} 4. Nc3 {[%emt 0:00:53]} Bb4 {[%emt 0:00:07]} 5. Bg5 {[%emt 0:02:05]} Bxc3+ {[%emt 0:01:44]} 6. bxc3 {[%emt 0:00:13]} Bb7 {[%emt 0:00:07]} 7. e3 {[%emt 0:06:14]} h6 {[%emt 0:00:45]} 8. Bh4 {[%emt 0:02:47]} d6 {[%emt 0:00:21]} 9. Nd2 {[%emt 0:12:49]} e5 {[%emt 0:02:05] LiveBook: 11 Games. E13: Queen's Indian/Nimzo-Indian hybrid: 4 Nc3 Bb7 5 Bg5 h6 6 Bh4 Bb4} 10. d5 $146 {[%emt 0:02:19]} ({Predecessor:} 10. c5 exd4 11. cxd4 dxc5 12. dxc5 Nbd7 13. Rc1 Nxc5 14. Rxc5 bxc5 15. Bb5+ Kf8 16. Qc2 Qd5 17. f3 {1-0 (45) Adianto,U (2580)-Jenni,F (2481) Biel 2006}) 10... Nbd7 {[%emt 0:00:40]} 11. Bd3 {[%emt 0:09:31]} Bc8 {[%emt 0:07:02] The position is equal.} 12. O-O {[%emt 0:04:44]} g5 {[%emt 0:01:40]} 13. Bg3 {[%emt 0:00:57]} Nc5 {[%emt 0:00:30]} 14. Qc2 {[%emt 0:01:26]} Qe7 {[%emt 0:10:01]} 15. f3 {[%emt 0:20:03]} h5 {[%emt 0:01:30]} 16. h4 {[%emt 0:05:16]} (16. Bf2 $15) 16... Ng8 {[%emt 0:02:11]} 17. hxg5 {[%emt 0:07:22]} (17. Bf2 $17 {might work better.}) 17... Qxg5 $19 {[%emt 0:00:11]} 18. Bf2 $2 {[%emt 0:00:35]} (18. Kf2) 18... Bh3 {[%emt 0:00:45] [#]} 19. g3 {[%emt 0:03:02]} h4 {[%emt 0:02:54]} 20. f4 $2 {[%emt 0:03:07]} (20. g4 Nxd3 21. Qxd3 Bxf1 22. Rxf1) 20... Qg4 {[%emt 0:03:33]} 21. Be4 {[%emt 0:04:21]} hxg3 {[%emt 0:00:31]} 22. Be1 {[%emt 0:01:03]} Qe2 {[%emt 0:07:24]} 23. Bxg3 {[%emt 0:01:36]} Qxe3+ {[%emt 0:01:26]} 24. Bf2 {[%emt 0:01:05]} Qxf4 {[%emt 0:00:08] ( -> ...Qg5+)} 25. Bg2 {[%emt 0:01:22]} Qg4 {[%emt 0:00:25]} (25... Bxg2 $142 26. Bh4 Qxh4 27. Qf5 Qh2+ 28. Kf2 Bxf1+ 29. Kxf1 Qh1+ 30. Ke2 Rh2+ 31. Qf2 Rxf2+ 32. Kxf2 Qxa1 33. Nf3 Qxc3 34. a4 Ne4+ 35. Ke2 Qc2+ 36. Ke1 Qd3 37. a5 Qxf3 38. axb6 Qf2+ 39. Kd1 Qd2#) 26. Bg3 {[%emt 0:03:03]} Qxg3 {[%emt 0:00:12]} 27. Ne4 {[%emt 0:00:24]} Nxe4 {[%emt 0:00:27]} 28. Qxe4 {[%emt 0:00:10]} Ne7 {[%emt 0:05:38]} 29. Rf2 {[%emt 0:02:01]} f5 {[%emt 0:00:42]} 30. Qc2 {[%emt 0:00:33]} Bg4 {[%emt 0:01:52]} 31. Qa4+ {[%emt 0:01:29]} Kf7 {[%emt 0:01:10] Black mates.} 32. Qd7 {[%emt 0:00:44]} f4 {[%emt 0:00:12]} 33. Qa4 {[%emt 0:00:41] [#]} Rh1+ $1 {[%emt 0:50:17] Precision: White = 13%, Black = 59%.} 0-1

[Event "22nd Hogeschool Zeeland 2018"]
[Site "Vlissingen"]
[Date "2018.08.05"]
[Round "2"]
[White "Van Delft, Merijn"]
[Black "Verwoert, Jef"]
[Result "1-0"]
[ECO "B36"]
[WhiteElo "2395"]
[BlackElo "2040"]
[Annotator "NA"]
[PlyCount "89"]
[EventDate "2018.08.04"]
[EventType "swiss"]
[EventCountry "NED"]
[SourceTitle "playchess.com"]
[Source "ChessBase"]
[SourceQuality "1"]
[TimeControl "40/5400+30:1800+30"]

1. e4 {[%emt 0:00:00]} c5 {[%emt 0:00:00]} 2. Nf3 {[%emt 0:00:00]} g6 {[%emt 0:00:00]} 3. d4 {[%emt 0:00:00]} cxd4 {[%emt 0:00:00]} 4. Nxd4 {[%emt 0:00:00]} Nc6 {[%emt 0:00:06]} 5. c4 {[%emt 0:00:02]} Nf6 {[%emt 0:00:20]} 6. Nc3 {[%emt 0:00:07]} d6 {[%emt 0:00:12]} 7. f3 {[%emt 0:01:13]} Nxd4 {[%emt 0:04:47]} 8. Qxd4 {[%emt 0:00:09]} Bg7 {[%emt 0:00:07]} 9. Be3 {[%emt 0:00:34]} O-O {[%emt 0:04:45]} 10. Qd2 {[%emt 0:00:06]} Qa5 {[%emt 0:03:03]} 11. Rc1 {[%emt 0:08:15]} Be6 {[%emt 0:01:01]} 12. b3 {[%emt 0:01:16] B36: Sicilian: Maroczy Bind: Gurgenidze System} Rfc8 {[%emt 0:02:51]} 13. Bd3 {[%emt 0:02:33]} (13. Be2 a6 14. Na4 Qxd2+ 15. Kxd2 Nd7 16. g4 f5 17. gxf5 gxf5 18. Rhg1 Kh8 19. Bd3 f4 20. Bf2 Bf6 21. Nb6 Nxb6 22. Bxb6 Rg8 23. a4 Rxg1 24. Rxg1 a5 {½-½ (75) Malakhov,V (2686)-Guseinov,G (2646) Riadh 2017}) 13... a6 {[%emt 0:03:34]} 14. Na4 {[%emt 0:03:44]} Qxd2+ {[%emt 0:01:20]} 15. Kxd2 {[%emt 0:00:08]} Nd7 {[%emt 0:10:05]} 16. g4 {[%emt 0:02:54]} Rc6 {[%emt 0:06:59]} 17. Be2 {[%emt 0:04:49]} Rac8 {[%emt 0:06:09]} 18. h4 {[%emt 0:03:26]} Nc5 $146 {[%emt 0:08:34]} ({Predecessor:} 18... f5 19. exf5 gxf5 20. g5 d5 21. cxd5 Bxd5 22. Rxc6 Rxc6 23. Rc1 Rxc1 24. Kxc1 {1-0 (43) Bragin,A (2399)-Vasiliev,V (2347) Tula 2007}) 19. Nc3 {[%emt 0:01:43]} Nd7 {[%emt 0:23:38]} 20. Nd5 {[%emt 0:07:14]} Bxd5 {[%emt 0:00:55]} 21. exd5 {[%emt 0:03:19]} R6c7 {[%emt 0:00:17]} 22. h5 {[%emt 0:05:34]} Bb2 {[%emt 0:04:13]} 23. Rc2 {[%emt 0:08:19]} Bg7 {[%emt 0:02:09]} 24. h6 {[%emt 0:04:44]} Bh8 {[%emt 0:02:16]} 25. Rhc1 {[%emt 0:05:25]} e6 {[%emt 0:06:43]} 26. dxe6 {[%emt 0:02:09]} fxe6 {[%emt 0:00:06]} 27. g5 {[%emt 0:03:13]} Ne5 {[%emt 0:04:52]} 28. Kd1 {[%emt 0:04:45]} d5 {[%emt 0:02:22]} 29. cxd5 {[%emt 0:02:25]} Rxc2 {[%emt 0:00:26]} 30. Rxc2 {[%emt 0:00:03]} Rxc2 {[%emt 0:00:28]} 31. Kxc2 {[%emt 0:00:02]} exd5 {[%emt 0:00:14]} 32. f4 {[%emt 0:09:41]} Nc6 {[%emt 0:01:17]} 33. Bg4 {[%emt 0:04:22]} Kf7 {[%emt 0:01:57]} 34. Bc5 {[%emt 0:01:56]} Nd4+ {[%emt 0:00:22]} 35. Kd3 {[%emt 0:00:51]} Nc6 {[%emt 0:00:37]} 36. Bc8 {[%emt 0:01:00]} b6 {[%emt 0:00:24]} 37. Bxb6 {[%emt 0:01:59]} Nb4+ {[%emt 0:00:27]} 38. Kd2 {[%emt 0:01:25]} Nxa2 {[%emt 0:00:41]} 39. Bxa6 {[%emt 0:00:43]} Bc3+ {[%emt 0:00:33]} 40. Kd3 {[%emt 0:05:47]} Bb4 {[%emt 0:00:38]} 41. Bb7 {[%emt 0:10:31]} Ke6 {[%emt 0:02:21]} 42. Bc8+ {[%emt 0:00:10]} Kf7 {[%emt 0:00:17]} 43. Be3 {[%emt 0:02:05]} Ba3 {[%emt 0:02:56]} 44. f5 {[%emt 0:07:25]} Nc1+ {[%emt 0:06:16] Ke4 [%clk 0:00:00]} 45. Kc2 $18 {[%emt 0:01:01]} 1-0

[Event "22nd Hogeschool Zeeland 2018"]
[Site "Vlissingen"]
[Date "2018.08.05"]
[Round "2"]
[White "Shyaamnikhil, P."]
[Black "Bekedam, Tyro"]
[Result "1/2-1/2"]
[ECO "B23"]
[WhiteElo "2389"]
[BlackElo "2014"]
[Annotator "NA"]
[PlyCount "161"]
[EventDate "2018.08.04"]
[EventType "swiss"]
[EventCountry "NED"]
[SourceTitle "playchess.com"]
[Source "ChessBase"]
[SourceQuality "1"]
[TimeControl "40/5400+30:1800+30"]

1. e4 {[%emt 0:00:00]} c5 {[%emt 0:00:00]} 2. f4 {[%emt 0:00:22]} e6 {[%emt 0:00:51]} 3. Nf3 {[%emt 0:00:25]} Nc6 {[%emt 0:00:27]} 4. Nc3 {[%emt 0:09:03]} Nge7 {[%emt 0:02:51]} 5. d4 {[%emt 0:05:06]} cxd4 {[%emt 0:04:01]} 6. Nxd4 {[%emt 0:00:08]} Nxd4 {[%emt 0:01:10]} 7. Qxd4 {[%emt 0:00:07]} Nc6 {[%emt 0:00:08]} 8. Qf2 {[%emt 0:00:18]} Qc7 {[%emt 0:04:14] B23: Closed Sicilian: Lines without g3} (8... d5 9. Bd3 Be7 10. O-O O-O 11. a3 a6 12. Kh1 d4 13. Ne2 b5 14. b4 Ra7 15. Bb2 Rd7 16. e5 Bb7 17. Qg3 {½-½ (38) Vocaturo,D (2542)-Iturrizaga Bonelli,E (2625) San Cristobal 2012}) 9. a3 $146 {[%emt 0:05:17]} ({Predecessor:} 9. Bd3 Nb4 10. Be3 b6 11. O-O Bb7 12. a3 Nxd3 13. cxd3 Be7 14. Rac1 Qd8 15. Nb5 O-O 16. Nxa7 {½-½ (31) Brustkern,J (2288)-Kahn,E (2355) Budapest 2002}) 9... a6 {[%emt 0:03:48]} 10. Be3 {[%emt 0:00:43]} b5 {[%emt 0:00:46]} 11. Bb6 {[%emt 0:00:10]} Qb7 {[%emt 0:07:21]} 12. e5 {[%emt 0:01:05]} Rb8 {[%emt 0:09:23]} 13. Bc5 {[%emt 0:01:35]} Bxc5 {[%emt 0:03:47]} 14. Qxc5 {[%emt 0:00:07]} Qb6 {[%emt 0:00:45]} 15. Ne4 {[%emt 0:05:34]} Qxc5 {[%emt 0:02:07]} 16. Nxc5 {[%emt 0:00:06]} f6 {[%emt 0:01:02]} 17. exf6 {[%emt 0:00:40]} gxf6 {[%emt 0:00:06]} 18. O-O-O {[%emt 0:00:26]} Ke7 {[%emt 0:03:39]} 19. g3 {[%emt 0:00:44]} d6 {[%emt 0:04:57]} 20. Nb3 {[%emt 0:01:42]} e5 {[%emt 0:02:40]} 21. Bg2 {[%emt 0:01:44]} Rb6 {[%emt 0:01:29]} 22. Nd2 {[%emt 0:11:22]} Bg4 {[%emt 0:03:26]} 23. Rde1 {[%emt 0:04:53]} Rc8 {[%emt 0:01:52]} 24. c3 {[%emt 0:00:48]} b4 {[%emt 0:05:11]} 25. fxe5 {[%emt 0:12:46]} dxe5 {[%emt 0:02:51]} 26. axb4 {[%emt 0:02:02]} Nxb4 {[%emt 0:00:56]} 27. Be4 {[%emt 0:00:09]} h6 {[%emt 0:11:15]} 28. Bb1 {[%emt 0:12:15]} Nd5 {[%emt 0:03:11]} 29. Bc2 {[%emt 0:00:09]} Rcb8 {[%emt 0:06:12]} 30. Nc4 {[%emt 0:00:14]} Rc6 {[%emt 0:00:26]} 31. Ne3 {[%emt 0:07:32]} Nxe3 {[%emt 0:01:08]} 32. Rxe3 {[%emt 0:00:06]} Rcb6 {[%emt 0:00:18]} 33. b3 {[%emt 0:00:50]} Be6 {[%emt 0:01:00]} 34. c4 {[%emt 0:00:07]} a5 {[%emt 0:00:27]} 35. Rc3 {[%emt 0:01:45]} Rb4 {[%emt 0:01:12]} 36. Kd2 {[%emt 0:00:35]} a4 {[%emt 0:01:59]} 37. bxa4 {[%emt 0:00:07]} Bxc4 {[%emt 0:01:22]} 38. Ra1 {[%emt 0:00:23]} Bd5 {[%emt 0:01:09]} 39. a5 {[%emt 0:00:52]} Ra8 {[%emt 0:03:06]} 40. a6 {[%emt 0:02:03]} Ra7 {[%emt 0:01:20]} 41. Bd3 {[%emt 0:32:15]} Kd6 {[%emt 0:34:50]} 42. Ke3 {[%emt 0:02:01]} Rb2 {[%emt 0:01:13]} 43. Rf1 {[%emt 0:06:04]} Ke6 {[%emt 0:00:00]} 44. Rf2 {[%emt 0:00:00]} Rb4 {[%emt 0:00:00]} 45. Rd2 {[%emt 0:00:00]} h5 {[%emt 0:00:00]} 46. Rc5 {[%emt 0:00:00]} h4 {[%emt 0:00:00]} 47. Bf1 {[%emt 0:00:00]} Re4+ {[%emt 0:00:00]} 48. Kf2 $11 {[%emt 0:00:00]} hxg3+ {[%emt 0:00:00]} 49. hxg3 {[%emt 0:00:00]} Ba8 {[%emt 0:00:00]} 50. Rb2 {[%emt 0:00:00]} Ra4 {[%emt 0:00:00]} 51. Rb6+ {[%emt 0:00:00]} Ke7 {[%emt 0:00:00]} 52. Bc4 {[%emt 0:00:00]} Rd7 {[%emt 0:00:00]} 53. Re6+ {[%emt 0:00:00]} Kf7 {[%emt 0:00:00]} 54. Rd6+ {[%emt 0:00:00]} Ke7 {[%emt 0:00:00]} 55. Rb6 {[%emt 0:00:35]} Rd2+ {[%emt 0:04:01]} 56. Ke3 {[%emt 0:00:23]} Rd4 {[%emt 0:00:42]} 57. Rc7+ {[%emt 0:02:24]} Rd7 {[%emt 0:01:45]} 58. Rxd7+ {[%emt 0:02:47]} Kxd7 {[%emt 0:00:06]} 59. Bb5+ {[%emt 0:00:04]} Kc7 {[%emt 0:00:03]} 60. Rxf6 {[%emt 0:00:06]} Ra3+ {[%emt 0:00:20]} 61. Kf2 {[%emt 0:00:08]} Ra2+ {[%emt 0:00:16]} 62. Ke1 {[%emt 0:01:12]} Ra1+ {[%emt 0:00:42]} 63. Kd2 {[%emt 0:00:08]} Ra2+ {[%emt 0:00:06]} 64. Kc1 {[%emt 0:01:38]} Rg2 {[%emt 0:00:28]} 65. Rg6 {[%emt 0:00:35]} Be4 {[%emt 0:02:04]} 66. Rg5 {[%emt 0:00:26]} Kb6 {[%emt 0:00:19]} 67. a7 {[%emt 0:02:29]} Kxb5 {[%emt 0:00:55]} 68. Rxe5+ {[%emt 0:00:09]} Kb6 {[%emt 0:00:04]} 69. Rxe4 {[%emt 0:00:09]} Kxa7 {[%emt 0:00:04]} 70. Re3 {[%emt 0:00:47]} Kb6 {[%emt 0:00:11]} 71. Kd1 {[%emt 0:00:08]} Kc5 {[%emt 0:01:13]} 72. Ke1 {[%emt 0:00:05]} Kd4 {[%emt 0:00:23]} 73. Kf1 {[%emt 0:00:05]} Ra2 {[%emt 0:00:12]} 74. Re8 {[%emt 0:00:08]} Kd5 {[%emt 0:00:10]} 75. Kg1 {[%emt 0:00:57]} Rb2 {[%emt 0:00:18]} 76. g4 {[%emt 0:00:20]} Rb4 {[%emt 0:01:13]} 77. Rg8 {[%emt 0:00:06]} Ke6 {[%emt 0:00:14]} 78. Kg2 {[%emt 0:00:06]} Kf7 {[%emt 0:00:04]} 79. Rg5 {[%emt 0:00:05]} Kf6 {[%emt 0:00:07]} 80. Rg8 {[%emt 0:00:09]} Kf7 {[%emt 0:00:04]} 81. Rg5 {[%emt 0:00:03]} 1/2-1/2

[Event "22nd Hogeschool Zeeland 2018"]
[Site "Vlissingen"]
[Date "2018.08.05"]
[Round "2"]
[White "Timmermans, Mark"]
[Black "Balla, Tom"]
[Result "1-0"]
[ECO "B20"]
[WhiteElo "2383"]
[BlackElo "2007"]
[Annotator "NA"]
[PlyCount "45"]
[EventDate "2018.08.04"]
[EventType "swiss"]
[EventCountry "NED"]
[SourceTitle "playchess.com"]
[Source "ChessBase"]
[SourceQuality "1"]
[TimeControl "40/5400+30:1800+30"]

1. e4 {[%emt 0:00:00]} c5 {[%emt 0:00:00]} 2. Ne2 {[%emt 0:00:20]} Nc6 {[%emt 0:01:23]} 3. g3 {[%emt 0:00:28]} d5 {[%emt 0:03:20]} 4. Bg2 {[%emt 0:00:30]} Nf6 {[%emt 0:01:29]} 5. exd5 {[%emt 0:00:31]} Nxd5 {[%emt 0:00:06]} 6. O-O {[%emt 0:00:16]} e5 {[%emt 0:04:27]} 7. d3 {[%emt 0:02:05]} Be7 {[%emt 0:01:56]} 8. Nbc3 {[%emt 0:00:10]} Nc7 {[%emt 0:04:15]} 9. f4 {[%emt 0:04:08]} exf4 {[%emt 0:04:39]} 10. Nxf4 {[%emt 0:00:40]} O-O {[%emt 0:00:35]} 11. Be3 {[%emt 0:07:05]} Bd7 {[%emt 0:08:56]} 12. Qd2 {[%emt 0:04:21]} Rc8 {[%emt 0:08:12]} 13. Rae1 {[%emt 0:07:41]} Ne6 {[%emt 0:01:58]} 14. Nfd5 {[%emt 0:02:18]} b6 {[%emt 0:09:15]} 15. Rf2 {[%emt 0:00:54]} Bg5 {[%emt 0:02:19]} 16. Ne4 {[%emt 0:04:57]} Bxe3 {[%emt 0:05:55]} 17. Qxe3 {[%emt 0:00:25]} f6 {[%emt 0:09:43]} 18. Ref1 {[%emt 0:14:24]} Ncd4 {[%emt 0:07:24]} 19. c3 {[%emt 0:08:38]} f5 {[%emt 0:00:45]} 20. Nd6 {[%emt 0:00:55]} f4 {[%emt 0:05:13]} 21. Nxf4 {[%emt 0:02:04]} Nxf4 {[%emt 0:00:42]} 22. Rxf4 {[%emt 0:00:06]} Rxf4 {[%emt 0:00:25]} 23. Rxf4 {[%emt 0:00:42]} 1-0

[Event "22nd Hogeschool Zeeland 2018"]
[Site "Vlissingen"]
[Date "2018.08.05"]
[Round "2"]
[White "Grooten, Herman"]
[Black "Kreutzmann, Duke"]
[Result "1-0"]
[ECO "A40"]
[WhiteElo "2374"]
[BlackElo "1987"]
[Annotator "NA"]
[PlyCount "115"]
[EventDate "2018.08.04"]
[EventType "swiss"]
[EventCountry "NED"]
[SourceTitle "playchess.com"]
[Source "ChessBase"]
[SourceQuality "1"]
[TimeControl "40/5400+30:1800+30"]

1. d4 {[%emt 0:00:18]} e6 {[%emt 0:00:00]} 2. c4 {[%emt 0:00:08]} Bb4+ {[%emt 0:00:00]} 3. Nd2 {[%emt 0:00:36]} Nf6 {[%emt 0:00:00]} 4. a3 {[%emt 0:00:15]} Bxd2+ {[%emt 0:00:00]} 5. Bxd2 {[%emt 0:01:17]} b6 {[%emt 0:00:06]} 6. f3 {[%emt 0:00:31]} Bb7 {[%emt 0:00:24]} 7. e3 {[%emt 0:03:46]} d6 {[%emt 0:02:11]} 8. Bd3 {[%emt 0:00:23]} c5 {[%emt 0:02:15]} 9. Ne2 {[%emt 0:00:26]} Nbd7 {[%emt 0:00:14]} 10. O-O {[%emt 0:00:32]} Qe7 {[%emt 0:01:12]} 11. e4 {[%emt 0:05:42]} cxd4 {[%emt 0:09:27]} 12. Nxd4 {[%emt 0:00:09]} O-O {[%emt 0:00:06]} 13. Re1 {[%emt 0:01:38]} a6 {[%emt 0:03:05]} 14. Bf1 {[%emt 0:08:21]} Rac8 {[%emt 0:02:37]} 15. Rc1 {[%emt 0:01:52]} Rfd8 {[%emt 0:03:43]} 16. Be3 {[%emt 0:05:15]} Ne5 {[%emt 0:01:33]} 17. Bf2 {[%emt 0:01:21]} Qc7 {[%emt 0:00:58]} 18. b4 {[%emt 0:04:55]} h6 {[%emt 0:16:47]} 19. Nb3 {[%emt 0:01:58]} Bc6 {[%emt 0:10:54]} 20. Qd4 {[%emt 0:04:27]} Ba4 {[%emt 0:05:10]} 21. Qb2 {[%emt 0:02:38]} Qb7 {[%emt 0:02:38]} 22. Nd2 {[%emt 0:02:42]} Nh5 {[%emt 0:08:47]} 23. Qd4 {[%emt 0:05:53]} Nd7 {[%emt 0:07:12]} 24. Nb1 {[%emt 0:04:38]} Qb8 {[%emt 0:01:51]} 25. Nc3 {[%emt 0:00:55]} Bc6 {[%emt 0:00:25]} 26. Red1 {[%emt 0:00:51]} Ne5 {[%emt 0:08:25]} 27. Qxb6 {[%emt 0:03:44]} Qa8 {[%emt 0:00:02]} 28. Qa7 {[%emt 0:02:45]} g5 {[%emt 0:02:39]} 29. Qxa8 {[%emt 0:02:59]} Bxa8 {[%emt 0:00:02]} 30. c5 {[%emt 0:01:07]} Bb7 {[%emt 0:01:06]} 31. cxd6 {[%emt 0:01:26]} Rc6 {[%emt 0:00:31]} 32. Bc5 {[%emt 0:06:09]} Nd7 {[%emt 0:00:30]} 33. Ne2 {[%emt 0:01:01]} e5 {[%emt 0:00:26]} 34. Ng3 {[%emt 0:01:41]} Nxg3 {[%emt 0:00:57]} 35. hxg3 {[%emt 0:00:07]} Kf8 {[%emt 0:00:12]} 36. Be3 {[%emt 0:01:58]} Rdc8 {[%emt 0:00:35]} 37. b5 {[%emt 0:01:26]} Rxc1 {[%emt 0:00:26]} 38. Rxc1 {[%emt 0:00:08]} Rxc1 {[%emt 0:01:25]} 39. Bxc1 {[%emt 0:00:05]} axb5 {[%emt 0:01:16]} 40. Bxb5 {[%emt 0:00:09]} Ke8 {[%emt 0:00:47]} 41. Be3 {[%emt 0:32:33]} Kd8 {[%emt 0:30:30]} 42. Kh2 {[%emt 0:03:38]} f6 {[%emt 0:01:11]} 43. Kh3 {[%emt 0:00:45]} h5 {[%emt 0:00:40]} 44. a4 {[%emt 0:01:50]} Nb8 {[%emt 0:00:22]} 45. a5 {[%emt 0:03:07]} Nc6 {[%emt 0:00:16]} 46. a6 {[%emt 0:02:02]} Ba8 {[%emt 0:00:11]} 47. f4 {[%emt 0:01:34]} gxf4 {[%emt 0:01:27]} 48. gxf4 {[%emt 0:00:07]} exf4 {[%emt 0:00:31]} 49. Bxf4 {[%emt 0:00:30]} Nd4 {[%emt 0:00:24]} 50. Ba4 {[%emt 0:02:58]} Bxe4 {[%emt 0:00:35]} 51. Be3 {[%emt 0:00:54]} Ne6 {[%emt 0:02:34]} 52. Bb6+ {[%emt 0:00:08]} Kc8 {[%emt 0:00:58]} 53. d7+ {[%emt 0:00:05]} Kb8 {[%emt 0:00:21]} 54. Bb3 {[%emt 0:00:27]} Nd8 {[%emt 0:00:39]} 55. Bxd8 {[%emt 0:06:08]} Bf5+ {[%emt 0:00:11]} 56. Kh2 {[%emt 0:00:15]} Bxd7 {[%emt 0:00:16]} 57. Bb6 {[%emt 0:00:15]} Bc6 {[%emt 0:00:17]} 58. Bd1 {[%emt 0:00:06]} 1-0

[Event "22nd Hogeschool Zeeland 2018"]
[Site "Vlissingen"]
[Date "2018.08.05"]
[Round "2"]
[White "Du, Yuxin"]
[Black "Viani Antonio Dcunha"]
[Result "0-1"]
[ECO "C59"]
[WhiteElo "2064"]
[BlackElo "2414"]
[Annotator "NA"]
[PlyCount "108"]
[EventDate "2018.08.04"]
[EventType "swiss"]
[EventCountry "NED"]
[SourceTitle "playchess.com"]
[Source "ChessBase"]
[SourceQuality "1"]
[TimeControl "40/5400+30:1800+30"]

1. e4 {[%emt 0:00:00]} e5 {[%emt 0:00:00]} 2. Nf3 {[%emt 0:00:00]} Nc6 {[%emt 0:00:02]} 3. Bc4 {[%emt 0:01:07]} Nf6 {[%emt 0:00:22]} 4. Ng5 {[%emt 0:02:32]} d5 {[%emt 0:00:14]} 5. exd5 {[%emt 0:00:09]} Na5 {[%emt 0:00:09]} 6. Bb5+ {[%emt 0:01:15]} c6 {[%emt 0:00:10]} 7. dxc6 {[%emt 0:00:09]} bxc6 {[%emt 0:00:08]} 8. Be2 {[%emt 0:00:50]} h6 {[%emt 0:07:34]} 9. Nf3 {[%emt 0:01:00]} e4 {[%emt 0:00:14]} 10. Ne5 {[%emt 0:02:20]} Bd6 {[%emt 0:07:53]} 11. d4 {[%emt 0:00:36]} exd3 {[%emt 0:00:15]} 12. Nxd3 {[%emt 0:00:06]} Qc7 {[%emt 0:00:24]} 13. h3 {[%emt 0:05:13]} O-O {[%emt 0:03:39]} 14. O-O {[%emt 0:01:56]} c5 {[%emt 0:02:55]} 15. b3 {[%emt 0:01:27] C59: Two Knights: 4 Ng5 d5 5 exd5 Na5 5 Bb5+ c6 6 dxc6 bxc6 7 Be2} c4 {[%emt 0:02:03]} 16. bxc4 {[%emt 0:00:58]} Nxc4 {[%emt 0:01:18]} 17. Nd2 {[%emt 0:00:26]} Bf5 {[%emt 0:14:35]} (17... Nxd2 18. Bxd2 Bf5 19. Ne1 Ne4 20. Bd3 Rac8 21. Nf3 Bc5 22. Be3 Rfd8 23. Qc1 Nc3 24. Qd2 Ne4 25. Qc1 Nc3 26. Qd2 Ne4 27. Qc1 Nc3 {½-½ (27) Liu,Q (2523)-Yu,Y (2723) Xinghua 2015}) 18. Nxc4 {[%emt 0:21:03]} Qxc4 {[%emt 0:00:10]} 19. Bb2 {[%emt 0:03:13]} Ne4 $146 {[%emt 0:01:24]} ({Predecessor:} 19... Rac8 20. Bxf6 gxf6 21. Ne1 {½-½ (47) Malmstroem,J (1993)-Starace,U (1952) IECG email 2006}) 20. Ne5 {[%emt 0:40:05]} Qc7 {[%emt 0:03:11]} 21. Nc4 {[%emt 0:04:50]} Bh2+ {[%emt 0:04:56]} 22. Kh1 {[%emt 0:00:11]} Rad8 {[%emt 0:02:28]} 23. Bd3 {[%emt 0:04:42]} Nc5 {[%emt 0:01:08]} 24. Qf3 {[%emt 0:01:43]} Bxd3 {[%emt 0:01:27]} 25. cxd3 {[%emt 0:00:12]} Nxd3 {[%emt 0:01:22]} 26. Qg4 {[%emt 0:04:22]} Nxb2 {[%emt 0:05:12]} 27. Nxb2 {[%emt 0:00:06]} Be5 {[%emt 0:05:22]} 28. Rac1 {[%emt 0:00:55]} Qb7 {[%emt 0:01:43]} 29. Nc4 {[%emt 0:01:26]} Rd4 {[%emt 0:04:17]} 30. Qe2 {[%emt 0:00:37]} Bf4 {[%emt 0:00:58]} 31. Rcd1 {[%emt 0:00:51]} Rxd1 {[%emt 0:01:47]} 32. Rxd1 {[%emt 0:00:15]} Qc6 {[%emt 0:00:35]} 33. Na5 {[%emt 0:01:19]} Qa4 {[%emt 0:01:30]} 34. Nb3 {[%emt 0:00:15]} Re8 {[%emt 0:01:16]} 35. Qc2 {[%emt 0:00:18]} Qb4 {[%emt 0:06:39]} 36. g3 {[%emt 0:00:27]} Qb7+ {[%emt 0:00:29]} 37. Kh2 {[%emt 0:00:17]} Bg5 {[%emt 0:01:50]} 38. Qf5 {[%emt 0:00:48]} Re2 {[%emt 0:03:41]} 39. Nc5 {[%emt 0:00:38]} g6 {[%emt 0:10:33]} 40. Nxb7 {[%emt 0:00:48]} gxf5 {[%emt 0:00:06]} 41. Kg1 {[%emt 0:30:31]} Rxa2 {[%emt 0:30:39]} 42. f4 {[%emt 0:00:00]} Bf6 {[%emt 0:00:00]} 43. Rd5 {[%emt 0:00:00] [#]} Bc3 $1 {[%emt 0:00:00]} 44. Nd6 {[%emt 0:00:00]} a5 {[%emt 0:00:00]} 45. Nxf5 $17 {[%emt 0:00:00]} a4 {[%emt 0:00:00]} 46. Nxh6+ {[%emt 0:00:45]} Kh7 {[%emt 0:00:00]} 47. Nxf7 {[%emt 0:00:48]} Rd2 {[%emt 0:00:00]} 48. Ng5+ {[%emt 0:00:27]} Kh6 {[%emt 0:00:00]} 49. Rb5 {[%emt 0:01:22]} Bd4+ {[%emt 0:00:00]} 50. Kf1 {[%emt 0:00:16]} a3 {[%emt 0:00:00]} 51. Ra5 {[%emt 0:00:12]} Rf2+ {[%emt 0:00:00]} 52. Kg1 {[%emt 0:00:52]} Rxf4+ {[%emt 0:00:00]} 53. Kg2 {[%emt 0:00:26]} Rf2+ {[%emt 0:00:00]} 54. Kh1 {[%emt 0:00:05]} a2 {[%emt 0:00:00]} 0-1